bitfinex-derivatives/quotes_BTCF0:USTF0_20260119
["timestamp","ask_amount","ask_price","bid_price","bid_amount"]
[1768834068163,0.00236855,92884.0,92868.0,0.11569885]
[1768834068358,0.00236855,92884.0,92874.0,0.010773]
[1768834068757,0.00236855,92884.0,92875.0,0.010772]
[1768834069067,0.00236855,92884.0,92876.0,0.010772]
[1768834069463,0.00236855,92884.0,92869.0,0.2113629]
[1768834069659,0.00236855,92884.0,92878.0,0.010772]
[1768834070471,0.00236855,92884.0,92868.0,0.09696]
[1768834070768,0.18105225,92880.0,92868.0,0.09696]
[1768834070965,0.00236855,92884.0,92872.0,0.010773]
[1768834071275,0.010772,92881.0,92869.0,0.010773]
[1768834072361,0.08148837,92879.0,92859.0,0.00016157]
[1768834072561,0.08148837,92876.0,92862.0,0.010774]
[1768834072761,0.08148837,92876.0,92864.0,0.010774]
[1768834072967,0.18105225,92882.0,92873.0,0.010773]
[1768834073271,0.18105225,92882.0,92865.0,0.20709212]
[1768834073469,0.18105225,92882.0,92872.0,0.010773]
[1768834073770,0.18105225,92882.0,92865.0,0.09752004]
[1768834073973,0.18105225,92882.0,92871.0,0.010773]
[1768834074171,0.08148837,92883.0,92871.0,0.010773]
[1768834074373,0.18105225,92881.0,92871.0,0.010773]
[1768834074871,0.00236855,92884.0,92872.0,0.010773]
[1768834075072,0.00236855,92884.0,92875.0,0.010772]
[1768834075467,0.00236855,92884.0,92869.0,0.09752004]
[1768834075859,0.00236855,92884.0,92874.0,0.010773]
[1768834076567,0.00236855,92884.0,92870.0,0.20709212]
[1768834076869,5.5e-07,92884.0,92874.0,0.20709212]
[1768834077058,5.5e-07,92884.0,92881.0,0.10829204]
[1768834077265,0.09696,92895.0,92881.0,0.10829204]
[1768834077465,0.02302273,92894.0,92881.0,0.10829204]
[1768834077667,0.02302273,92893.0,92881.0,0.09752004]
[1768834077873,0.02302273,92892.0,92881.0,0.09752004]
[1768834078074,0.02302273,92891.0,92881.0,0.09752004]
[1768834078273,0.02302273,92890.0,92881.0,0.09752004]
[1768834078568,0.09696,92896.0,92881.0,0.09752004]
[1768834078773,0.09696,92896.0,92883.0,0.09752004]
[1768834078974,0.09696,92896.0,92884.0,0.10829104]
[1768834079177,0.01077,92898.0,92884.0,0.010771]
[1768834079474,0.02077,92898.0,92884.0,0.010771]
[1768834079670,0.02077,92898.0,92881.0,0.010772]
[1768834079867,0.01077,92896.0,92881.0,0.010772]
[1768834080269,0.07662708,92899.0,92878.0,0.09768161]
[1768834080476,0.07747813,92897.0,92878.0,0.09768161]
[1768834080778,0.01077,92896.0,92882.0,0.010772]
[1768834082173,0.10763388,92899.0,92883.0,0.010772]
[1768834082377,0.02077,92899.0,92883.0,0.010772]
[1768834082576,0.02077,92899.0,92879.0,0.09752004]
[1768834082577,0.02077,92899.0,92885.0,0.010771]
[1768834083373,0.01077,92896.0,92882.0,0.010772]
[1768834084766,0.07874872,92899.0,92880.0,0.010772]
[1768834085077,0.08874872,92899.0,92880.0,0.010772]
[1768834085670,0.01077,92896.0,92882.0,0.010772]
[1768834086069,0.01077,92896.0,92879.0,0.20709212]
[1768834086369,0.08951872,92896.0,92880.0,0.010772]
[1768834086570,0.08951872,92896.0,92882.0,0.010772]
[1768834086776,0.01077,92896.0,92882.0,0.010772]
[1768834087366,0.07859672,92895.0,92882.0,0.010772]
[1768834088464,0.07859672,92895.0,92884.0,0.010772]
[1768834088670,0.01077,92898.0,92884.0,0.010772]
[1768834088873,0.01077,92895.0,92882.0,0.010772]
[1768834089479,0.08068583,92898.0,92879.0,0.010772]
[1768834089776,0.08068583,92898.0,92878.0,0.10845361]
[1768834089777,0.08068583,92895.0,92878.0,0.10845361]
[1768834089978,0.19182325,92890.0,92878.0,0.09768161]
[1768834090179,0.19182325,92890.0,92878.0,0.00016157]
[1768834090385,0.18105225,92890.0,92878.0,0.00016157]
[1768834090567,0.09145583,92895.0,92878.0,0.00016157]
[1768834090766,0.18105225,92890.0,92878.0,0.00016157]
[1768834090973,0.1751129,92898.0,92887.0,0.010771]
[1768834091175,0.01077,92897.0,92884.0,0.010772]
[1768834091379,0.02077,92897.0,92881.0,0.20709212]
[1768834092879,0.01,92897.0,92881.0,0.20709212]
[1768834093174,0.07518512,92896.0,92878.0,0.10973365]
[1768834093380,0.010771,92893.0,92880.0,0.010772]
[1768834094082,0.08595512,92896.0,92880.0,0.010772]
[1768834094484,0.08595512,92896.0,92878.0,0.09712157]
[1768834094485,0.010771,92888.0,92878.0,0.09712157]
[1768834094777,0.010771,92888.0,92869.0,0.09988898]
[1768834094778,0.07471433,92888.0,92870.0,0.010773]
[1768834094984,0.18105225,92880.0,92872.0,0.010773]
[1768834095380,0.18105225,92880.0,92871.0,0.09696]
[1768834095680,0.010772,92879.0,92867.0,0.09696]
[1768834095874,0.19182425,92880.0,92867.0,0.09696]
[1768834096277,0.010772,92883.0,92867.0,0.09696]
[1768834096478,0.18105225,92880.0,92864.0,0.0998891]
[1768834096678,0.07333545,92879.0,92864.0,0.00236906]
[1768834097381,0.19182425,92880.0,92865.0,0.010774]
[1768834097783,0.19182425,92880.0,92867.0,0.010773]
[1768834097983,0.19182425,92880.0,92869.0,0.010773]
[1768834097984,0.18105225,92880.0,92869.0,0.010773]
[1768834098781,0.00236804,92904.0,92892.0,0.10829104]
[1768834098974,0.00236804,92904.0,92875.0,0.010773]
[1768834098975,0.00236804,92904.0,92896.0,0.10957208]
[1768834099185,0.010767,92920.0,92899.0,0.09752004]
[1768834099499,0.11995126,92919.0,92900.0,0.18105225]
[1768834099685,0.02299126,92918.0,92900.0,0.18105225]
[1768834099882,0.06375926,92918.0,92900.0,0.18105225]
[1768834100184,0.03,92918.0,92912.0,0.010768]
[1768834100390,0.03,92918.0,92899.0,0.09752004]
[1768834100391,0.00236753,92924.0,92908.0,0.18105225]
[1768834100584,0.09696,92923.0,92915.0,0.010768]
[1768834100893,0.09696,92923.0,92919.0,0.010767]
[1768834100894,0.09696,92922.0,92919.0,0.010767]
[1768834101084,1.15712741,92929.0,92919.0,0.010767]
[1768834101085,0.09696,92921.0,92919.0,0.010767]
[1768834101388,0.09696,92922.0,92916.0,0.010768]
[1768834101891,0.09696,92922.0,92913.0,0.21786012]
[1768834102890,0.09696,92922.0,92913.0,0.09752004]
[1768834103282,0.09123322,92921.0,92900.0,0.18121373]
[1768834103482,0.09123322,92921.0,92904.0,0.010769]
[1768834103889,0.010767,92920.0,92901.0,0.09757387]
[1768834104082,0.09123322,92921.0,92905.0,0.010769]
[1768834104485,0.09696,92920.0,92902.0,0.010769]
[1768834104691,0.18660246,92920.0,92902.0,0.010769]
[1768834105185,0.10041046,92919.0,92902.0,0.010769]
[1768834105392,0.010768,92916.0,92901.0,0.10834387]
[1768834105591,0.08964246,92919.0,92901.0,0.09757387]
[1768834106092,0.08964246,92919.0,92903.0,0.010769]
[1768834106291,0.08964246,92919.0,92905.0,0.010769]
[1768834106792,0.09696,92920.0,92907.0,0.010769]
[1768834107195,0.107727,92920.0,92902.0,0.09757387]
[1768834107592,0.09696,92920.0,92905.0,0.010769]
[1768834108683,0.09696,92920.0,92907.0,0.010769]
[1768834109584,0.09696,92920.0,92909.0,0.010769]
[1768834111095,0.09696,92920.0,92907.0,0.010769]
[1768834111395,0.09696,92920.0,92902.0,0.09757387]
[1768834112397,0.107727,92920.0,92905.0,0.010769]
[1768834112895,0.09696,92920.0,92905.0,0.010769]
[1768834113096,0.09696,92920.0,92907.0,0.010769]
[1768834113401,0.19642489,92920.0,92903.0,0.010769]
[1768834113597,0.19139905,92918.0,92900.0,0.01093148]
[1768834113892,0.08869789,92916.0,92900.0,0.18121373]
[1768834114194,0.010768,92915.0,92900.0,0.19198373]
[1768834114399,0.010768,92915.0,92902.0,0.010769]
[1768834114594,0.191503,92915.0,92900.0,0.01093148]
[1768834114790,0.26985409,92910.0,92900.0,0.00016148]
[1768834115095,0.08880184,92912.0,92900.0,0.00016148]
[1768834115295,0.08880184,92912.0,92905.0,0.010769]
[1768834115499,0.08880184,92918.0,92900.0,0.00016148]
[1768834115998,0.09956984,92918.0,92904.0,0.010769]
[1768834116494,0.010768,92915.0,92902.0,0.010769]
[1768834116696,0.09725073,92915.0,92902.0,0.010769]
[1768834116998,0.08648273,92915.0,92900.0,0.00016148]
[1768834118501,0.08648273,92915.0,92895.0,0.11041925]
[1768834118800,0.010768,92913.0,92900.0,0.01077]
[1768834118998,0.08648273,92915.0,92903.0,0.010769]
[1768834119586,0.010768,92913.0,92900.0,0.01077]
[1768834120003,0.08606325,92917.0,92907.0,0.010769]
[1768834120190,0.010768,92916.0,92901.0,0.10984969]
[1768834120390,0.09666977,92914.0,92895.0,0.11192607]
[1768834120790,0.09666977,92914.0,92904.0,0.00236804]
[1768834121093,0.09692,92913.0,92895.0,0.09908069]
[1768834121401,0.09692,92913.0,92898.0,0.01077]
[1768834121592,0.09692,92913.0,92895.0,0.09908069]
[1768834121793,0.08519387,92912.0,92895.0,0.09908069]
[1768834122294,0.010768,92911.0,92897.0,0.01077]
[1768834122497,0.08261365,92911.0,92891.0,0.01291072]
[1768834122797,0.08261365,92906.0,92893.0,0.01077]
[1768834122999,0.08261365,92906.0,92895.0,0.01077]
[1768834123201,0.08261365,92906.0,92887.0,0.09908069]
[1768834123399,0.08261365,92906.0,92895.0,0.01077]
[1768834123699,0.08261365,92910.0,92892.0,0.09908069]
[1768834123901,0.09692,92913.0,92903.0,0.010769]
[1768834124097,0.09692,92912.0,92903.0,0.010769]
[1768834124294,0.09692,92912.0,92900.0,0.01077]
[1768834124500,0.09338165,92915.0,92896.0,0.09908069]
[1768834124697,0.09692,92914.0,92896.0,0.09908069]
[1768834124995,0.09286222,92912.0,92895.0,0.01077]
[1768834125196,0.010769,92909.0,92891.0,0.12575757]
[1768834125397,0.09692,92908.0,92891.0,0.12575757]
[1768834126295,0.08209422,92906.0,92891.0,0.01262689]
[1768834126506,0.09491222,92905.0,92891.0,0.010771]
[1768834126907,0.08414322,92905.0,92891.0,0.010771]
[1768834127704,0.010769,92904.0,92891.0,0.010771]
[1768834127904,0.08414322,92905.0,92891.0,0.010771]
[1768834128095,0.08414322,92905.0,92893.0,0.01077]
[1768834128705,0.010769,92903.0,92891.0,0.05805538]
[1768834129099,0.010769,92903.0,92890.0,0.05805538]
[1768834130008,0.18813253,92906.0,92891.0,0.010771]
[1768834130305,0.010769,92903.0,92890.0,0.05805538]
[1768834131300,0.18813253,92906.0,92891.0,0.010771]
[1768834131607,0.010769,92904.0,92891.0,0.010771]
[1768834132009,0.09692,92908.0,92892.0,0.21221137]
[1768834132511,0.09692,92908.0,92894.0,0.01077]
[1768834132708,0.107689,92908.0,92894.0,0.01077]
[1768834133112,0.010769,92906.0,92892.0,0.21221137]
[1768834134116,0.09692,92908.0,92893.0,0.01077]
[1768834134304,0.09692,92908.0,92897.0,0.01077]
[1768834135198,0.09692,92908.0,92899.0,0.01077]
[1768834135410,0.09692,92908.0,92895.0,0.01077]
[1768834135723,0.09692,92908.0,92892.0,0.21221137]
[1768834136513,0.09692,92908.0,92898.0,0.01077]
[1768834137306,0.09692,92908.0,92894.0,0.01077]
[1768834137505,0.09692,92908.0,92896.0,0.01077]
[1768834137906,0.107689,92908.0,92893.0,0.20707877]
[1768834138315,0.09692,92908.0,92893.0,0.20707877]
[1768834138507,0.09692,92908.0,92895.0,0.01077]
[1768834138708,0.09692,92908.0,92897.0,0.01077]
[1768834139503,0.09692,92908.0,92899.0,0.01077]
[1768834139902,0.09692,92907.0,92895.0,0.20707877]
[1768834140102,0.09692,92907.0,92896.0,0.20707877]
[1768834140307,0.00016148,92917.0,92907.0,0.010769]
[1768834140512,0.09692,92916.0,92909.0,0.010769]
[1768834141507,0.09692,92916.0,92905.0,0.0988526]
[1768834141707,0.09692,92916.0,92906.0,0.20707877]
[1768834142017,0.09692,92921.0,92908.0,0.20707877]
[1768834143009,0.09692,92921.0,92912.0,0.010768]
[1768834143209,0.00236753,92924.0,92912.0,0.010768]
[1768834143409,0.11974196,92923.0,92912.0,0.010768]
[1768834143619,0.09692,92923.0,92912.0,0.010768]
[1768834144510,0.02282148,92922.0,92908.0,0.1096216]
[1768834144809,0.010767,92920.0,92908.0,0.0988526]
[1768834145216,0.09692,92923.0,92908.0,0.0988526]
[1768834145416,0.02282088,92922.0,92908.0,0.0988526]
[1768834145617,0.09692,92923.0,92908.0,0.0988526]
[1768834145818,0.02282087,92922.0,92908.0,0.0988526]
[1768834146005,0.180674,92922.0,92903.0,0.00016148]
[1768834146210,0.08312351,92915.0,92903.0,0.01093048]
[1768834147023,0.08312351,92915.0,92903.0,0.00016148]
[1768834147217,0.09755049,92917.0,92903.0,0.00016148]
[1768834147419,0.010767,92920.0,92906.0,0.010769]
[1768834147616,0.08413433,92913.0,92903.0,0.00016148]
[1768834147827,0.09755049,92917.0,92903.0,0.00016148]
[1768834148009,0.010768,92912.0,92903.0,0.00016148]
[1768834148417,0.08413433,92913.0,92903.0,0.00016148]
[1768834150820,0.09512186,92915.0,92903.0,0.00016148]
[1768834152030,0.08435386,92915.0,92905.0,0.010769]
[1768834152218,0.08435386,92919.0,92905.0,0.010769]
[1768834152718,0.08435386,92919.0,92895.0,0.01077]
[1768834152719,0.08445233,92901.0,92887.0,0.010771]
[1768834153112,0.08445233,92901.0,92891.0,0.01256626]
[1768834153316,0.08445233,92901.0,92887.0,0.010771]
[1768834153317,0.08445233,92901.0,92892.0,0.01256626]
[1768834153626,0.01077,92900.0,92892.0,0.01256626]
[1768834153817,0.01077,92900.0,92895.0,0.01256626]
[1768834154126,0.01077,92900.0,92893.0,0.01256626]
[1768834154314,0.01077,92898.0,92893.0,0.01256626]
[1768834154516,0.10058322,92896.0,92884.0,0.00236855]
[1768834155625,0.11135322,92896.0,92884.0,0.00236855]
[1768834155812,0.00303273,92895.0,92884.0,0.01314055]
[1768834156619,0.00303273,92895.0,92884.0,0.00236855]
[1768834160014,0.19447049,92896.0,92885.0,0.010771]
[1768834160524,0.09692,92896.0,92884.0,0.00236855]
[1768834161120,0.00251106,92898.0,92884.0,0.00236855]
[1768834161320,0.09692,92897.0,92884.0,0.00236855]
[1768834161526,0.09692,92897.0,92885.0,0.010771]
[1768834162525,0.01077,92896.0,92884.0,0.00236855]
[1768834162723,0.10206291,92897.0,92884.0,0.01314055]
[1768834163633,0.10206291,92897.0,92886.0,0.010771]
[1768834164022,0.10206291,92897.0,92887.0,0.010771]
[1768834164224,0.00514291,92897.0,92884.0,0.00236855]
[1768834164423,0.00016148,92899.0,92891.0,0.010771]
[1768834164624,0.09692,92898.0,92891.0,0.010771]
[1768834165335,0.09692,92898.0,92888.0,0.010771]
[1768834165525,0.09692,92898.0,92884.0,0.11607026]
[1768834165920,0.09692,92898.0,92884.0,0.00236855]
[1768834166320,0.09692,92898.0,92887.0,0.010771]
[1768834167134,0.10769,92898.0,92884.0,0.01313955]
[1768834167835,0.09692,92898.0,92885.0,0.010771]
[1768834168537,0.01077,92897.0,92885.0,0.010771]
[1768834168838,0.01077,92897.0,92884.0,0.01313955]
[1768834169132,0.09692,92898.0,92886.0,0.010771]
[1768834172342,0.09692,92898.0,92884.0,0.00236855]
[1768834172634,0.00016148,92899.0,92889.0,0.11370171]
[1768834172829,0.09692,92900.0,92892.0,0.010771]
[1768834173034,0.09692,92900.0,92889.0,0.11370171]
[1768834173230,0.09692,92900.0,92885.0,0.09249913]
[1768834174138,0.09692,92900.0,92885.0,0.10327013]
[1768834174637,0.09692,92900.0,92887.0,0.010771]
[1768834175138,0.01906056,92901.0,92884.0,0.00236855]
[1768834175339,0.19368924,92903.0,92884.0,0.20856939]
[1768834175538,0.09692,92903.0,92885.0,0.11370171]
[1768834176140,0.09692,92903.0,92891.0,0.010771]
[1768834176438,0.10753824,92908.0,92893.0,0.01077]
[1768834176739,0.02279252,92907.0,92893.0,0.01077]
[1768834176939,0.010769,92908.0,92893.0,0.01077]
[1768834177138,0.02279254,92907.0,92893.0,0.01077]
[1768834177334,0.02279254,92906.0,92893.0,0.01077]
[1768834177541,0.010769,92908.0,92893.0,0.01077]
[1768834177740,0.0228395,92907.0,92893.0,0.01077]
[1768834177940,0.0228395,92906.0,92893.0,0.01077]
[1768834178141,0.010769,92908.0,92893.0,0.01077]
[1768834178435,0.010769,92906.0,92891.0,0.11370171]
[1768834178641,0.00878064,92908.0,92891.0,0.010771]
[1768834178843,0.03162347,92907.0,92891.0,0.010771]
[1768834179042,0.00878064,92905.0,92891.0,0.010771]
[1768834179542,0.01954964,92905.0,92891.0,0.010771]
[1768834179743,0.00878064,92908.0,92889.0,0.20620084]
[1768834180044,0.010769,92906.0,92892.0,0.010771]
[1768834180244,0.02284684,92905.0,92892.0,0.010771]
[1768834181144,0.02284684,92905.0,92889.0,0.20620084]
[1768834181145,0.010769,92904.0,92890.0,0.010771]
[1768834181740,0.010769,92904.0,92891.0,0.010771]
[1768834181939,0.010769,92906.0,92891.0,0.010771]
[1768834182140,0.0228593,92905.0,92891.0,0.010771]
[1768834182347,0.0228593,92904.0,92891.0,0.010771]
[1768834182646,0.0228593,92903.0,92891.0,0.010771]
[1768834182851,0.010769,92906.0,92891.0,0.010771]
[1768834183050,0.02287046,92905.0,92891.0,0.010771]
[1768834183239,0.02287046,92904.0,92891.0,0.010771]
[1768834183548,0.010769,92906.0,92891.0,0.010771]
[1768834183549,0.02287046,92903.0,92891.0,0.010771]
[1768834183739,0.010769,92906.0,92893.0,0.01077]
[1768834183938,0.02287261,92905.0,92893.0,0.01077]
[1768834184134,0.02287261,92904.0,92894.0,0.01077]
[1768834184340,0.02287261,92903.0,92894.0,0.01077]
[1768834184541,0.01954964,92908.0,92894.0,0.01077]
[1768834184739,0.02287549,92907.0,92894.0,0.01077]
[1768834184951,0.02287549,92906.0,92894.0,0.01077]
[1768834185152,0.02287549,92905.0,92894.0,0.01077]
[1768834185450,0.02287549,92904.0,92892.0,0.010771]
[1768834185639,0.02287549,92903.0,92892.0,0.010771]
[1768834185850,0.02287549,92903.0,92890.0,0.010771]
[1768834187155,0.01077,92901.0,92886.0,0.21134317]
[1768834187355,0.010769,92903.0,92889.0,0.010771]
[1768834187558,0.02287958,92902.0,92889.0,0.010771]
[1768834187754,0.010769,92903.0,92889.0,0.010771]
[1768834187955,0.0228796,92902.0,92889.0,0.010771]
[1768834188157,0.00833804,92905.0,92886.0,0.21134317]
[1768834188357,0.0322424,92904.0,92886.0,0.21134317]
[1768834188554,0.02287976,92903.0,92886.0,0.21134317]
[1768834188858,0.02287976,92903.0,92887.0,0.21321058]
[1768834189157,0.02287976,92902.0,92894.0,0.01077]
[1768834189359,0.1106185,92908.0,92894.0,0.01077]
[1768834189563,0.02288004,92907.0,92889.0,0.11442317]
[1768834189765,0.0998495,92919.0,92903.0,0.010769]
[1768834189966,0.010768,92918.0,92903.0,0.010769]
[1768834190264,0.18093203,92920.0,92901.0,0.09878741]
[1768834190455,0.010768,92918.0,92904.0,0.010769]
[1768834190857,0.010768,92917.0,92902.0,0.010769]
[1768834191061,0.01742367,92917.0,92902.0,0.010769]
[1768834191768,0.00665567,92917.0,92901.0,0.00016148]
[1768834192164,0.010768,92915.0,92901.0,0.01093048]
[1768834192764,0.01750198,92915.0,92901.0,0.01093048]
[1768834193465,0.00236753,92924.0,92906.0,0.20602584]
[1768834193664,0.09692,92932.0,92918.0,0.010768]
[1768834193869,0.03236741,92929.0,92918.0,0.010768]
[1768834194173,0.03236741,92929.0,92916.0,0.11062792]
[1768834194373,0.03236741,92929.0,92915.0,0.010768]
[1768834195072,0.010766,92928.0,92913.0,0.21679384]
[1768834195663,0.010767,92926.0,92913.0,0.21679384]
[1768834195866,0.010767,92926.0,92913.0,0.20602584]
[1768834196869,0.01313341,92929.0,92914.0,0.010768]
[1768834197177,0.010767,92928.0,92913.0,0.20602584]
[1768834197363,0.010767,92928.0,92913.0,0.21679384]
[1768834198069,0.010767,92928.0,92913.0,0.13679384]
[1768834198469,0.00236741,92929.0,92913.0,0.12602584]
[1768834199069,0.01313341,92929.0,92913.0,0.12602584]
[1768834200470,0.01313341,92929.0,92914.0,0.010768]
[1768834200866,0.010767,92926.0,92913.0,0.12602584]
[1768834201172,0.010767,92923.0,92908.0,0.010769]
[1768834201365,0.0239277,92926.0,92910.0,0.010769]
[1768834201672,0.0239277,92926.0,92910.0,0.19170103]
[1768834201870,0.0239277,92926.0,92912.0,0.010768]
[1768834202067,0.01313341,92929.0,92913.0,0.09539792]
[1768834202279,0.010766,92930.0,92920.0,0.11062792]
[1768834202468,0.010766,92930.0,92919.0,0.18093203]
[1768834202981,0.010767,92925.0,92909.0,0.09692]
[1768834203274,0.02366541,92928.0,92910.0,0.19170103]
[1768834203466,0.010767,92925.0,92910.0,0.12139692]
[1768834203667,0.010767,92925.0,92910.0,0.30232895]
[1768834204369,0.10856554,92928.0,92912.0,0.010768]
[1768834204563,0.010767,92926.0,92911.0,0.010768]
[1768834204870,0.09779854,92928.0,92913.0,0.010768]
[1768834205076,0.09779854,92928.0,92915.0,0.010768]
[1768834206474,0.12125411,92930.0,92915.0,0.010768]
[1768834206674,0.11048811,92930.0,92912.0,0.010768]
[1768834206875,0.12125411,92930.0,92914.0,0.010768]
[1768834207774,0.11048811,92930.0,92911.0,0.11062792]
[1768834207975,0.09779854,92930.0,92918.0,0.010768]
[1768834208175,0.010766,92934.0,92920.0,0.18093203]
[1768834208375,0.010766,92931.0,92920.0,0.18093203]
[1768834209174,0.010766,92934.0,92920.0,0.18093203]
[1768834209871,0.20548454,92936.0,92921.0,0.010767]
[1768834210066,0.23548454,92936.0,92921.0,0.010767]
[1768834210266,0.010766,92934.0,92919.0,0.12139492]
[1768834210471,0.010766,92934.0,92920.0,0.29155995]
[1768834210671,0.010766,92935.0,92920.0,0.29155995]
[1768834210873,0.010766,92935.0,92922.0,0.010767]
[1768834211065,0.01148151,92940.0,92925.0,0.18093203]
[1768834211066,0.010765,92940.0,92925.0,0.18093203]
[1768834211274,0.02282533,92939.0,92930.0,0.18093203]
[1768834211477,0.04,92939.0,92930.0,0.18093203]
[1768834211676,0.04,92939.0,92929.0,0.18093203]
[1768834211980,0.04,92939.0,92929.0,0.29155995]
[1768834212577,0.00236702,92944.0,92934.0,0.010766]
[1768834212881,0.04236702,92944.0,92936.0,0.11062792]
[1768834213380,0.04236702,92944.0,92933.0,0.20602584]
[1768834214882,0.04236702,92944.0,92934.0,0.010766]
[1768834215382,0.0023669,92949.0,92934.0,0.12139392]
[1768834215576,0.0423669,92949.0,92934.0,0.12139392]
[1768834215781,0.0423669,92949.0,92939.0,0.18093203]
[1768834216278,0.0531309,92949.0,92939.0,0.18093203]
[1768834216669,0.0531309,92949.0,92937.0,0.11062792]
[1768834217375,0.010764,92947.0,92937.0,0.11062792]
[1768834217571,0.050764,92947.0,92937.0,0.11062792]
[1768834218179,0.050764,92947.0,92934.0,0.09539792]
[1768834218180,0.050764,92947.0,92935.0,0.11062792]
[1768834218375,0.010764,92947.0,92935.0,0.11062792]
[1768834218768,0.010765,92944.0,92932.0,0.09692]
[1768834219573,0.010764,92947.0,92932.0,0.09692]
[1768834219783,0.010764,92947.0,92932.0,0.20754792]
[1768834220279,0.0023669,92949.0,92933.0,0.21679184]
[1768834220581,0.0023669,92949.0,92939.0,0.18093203]
[1768834220783,0.0023669,92949.0,92940.0,0.11062792]
[1768834221079,0.0023669,92949.0,92940.0,0.12139292]
[1768834221386,0.0023669,92949.0,92940.0,0.11062792]
[1768834221779,0.0023669,92949.0,92940.0,0.21679084]
[1768834222078,0.09779854,92966.0,92945.0,0.09539792]
[1768834222280,0.04236651,92964.0,92950.0,0.18093203]
[1768834222882,0.04236651,92964.0,92951.0,0.10837552]
[1768834223084,0.010763,92960.0,92951.0,0.10837552]
[1768834223289,0.050763,92960.0,92951.0,0.10837552]
[1768834223480,0.010763,92960.0,92951.0,0.10837552]
[1768834223785,0.010763,92960.0,92950.0,0.18093203]
[1768834224179,0.010762,92963.0,92950.0,0.18093203]
[1768834224382,0.040762,92963.0,92950.0,0.28930755]
[1768834225388,0.010763,92961.0,92950.0,0.28930755]
[1768834225986,0.00236651,92964.0,92948.0,0.00016139]
[1768834226180,0.010764,92953.0,92948.0,3.9e-07]
[1768834226778,0.010763,92956.0,92948.0,3.9e-07]
[1768834227389,0.1092937,92959.0,92948.0,3.9e-07]
[1768834227990,0.010763,92954.0,92948.0,3.9e-07]
[1768834228183,0.1092937,92959.0,92948.0,3.9e-07]
[1768834228184,0.010764,92952.0,92948.0,3.9e-07]
[1768834228388,0.10672712,92950.0,92948.0,3.9e-07]
[1768834229787,0.09596312,92950.0,92948.0,3.9e-07]
[1768834229988,0.010764,92951.0,92948.0,3.9e-07]
[1768834230188,0.10672712,92951.0,92948.0,3.9e-07]
[1768834230586,0.01493721,92950.0,92948.0,3.9e-07]
[1768834230783,0.10672712,92951.0,92948.0,3.9e-07]
[1768834230784,0.12166433,92949.0,92948.0,3.9e-07]
[1768834231790,0.010765,92945.0,92932.0,0.09688]
[1768834232998,0.11011915,92945.0,92932.0,0.09688]
[1768834233186,0.11011915,92940.0,92929.0,4.1e-07]
[1768834233383,0.11011915,92939.0,92929.0,4.1e-07]
[1768834233582,0.01157478,92938.0,92929.0,4.1e-07]
[1768834233783,0.1075379,92938.0,92929.0,4.1e-07]
[1768834233986,0.010766,92931.0,92924.0,0.00236753]
[1768834234188,0.1075379,92931.0,92911.0,0.107648]
[1768834234392,0.01157478,92930.0,92911.0,0.107648]
[1768834234580,0.010766,92929.0,92913.0,0.010768]
[1768834235685,0.01157478,92930.0,92913.0,0.010768]
[1768834235889,0.010766,92928.0,92912.0,0.010768]
[1768834236289,0.010766,92928.0,92911.0,0.20525552]
[1768834236489,0.010766,92928.0,92911.0,0.21602352]
[1768834237586,0.010767,92926.0,92911.0,0.20525552]
[1768834237790,0.010767,92923.0,92911.0,0.09688]
[1768834238095,0.10662138,92925.0,92911.0,0.09688]
[1768834238303,0.010767,92924.0,92911.0,0.09688]
[1768834238595,0.010767,92924.0,92909.0,0.00236792]
[1768834239693,0.10673012,92924.0,92909.0,0.00236792]
[1768834239894,0.00984577,92921.0,92909.0,0.00236792]
[1768834240083,0.010767,92920.0,92909.0,0.00236792]
[1768834240284,0.1976023,92919.0,92898.0,0.20966117]
[1768834240483,0.1007223,92915.0,92894.0,0.11459029]
[1768834240699,0.00984577,92914.0,92894.0,0.11459029]
[1768834240889,0.09087653,92915.0,92895.0,0.11459029]
[1768834241198,0.01000716,92918.0,92899.0,0.01077]
[1768834241395,0.01000716,92918.0,92901.0,0.01077]
[1768834241599,0.01000716,92918.0,92898.0,0.11459029]
[1768834241796,0.01000716,92918.0,92902.0,0.010769]
[1768834244500,0.00016139,92918.0,92902.0,0.010769]
[1768834244703,0.01092939,92918.0,92902.0,0.010769]
[1768834245293,0.01092939,92918.0,92901.0,0.11459029]
[1768834245498,0.010768,92916.0,92901.0,0.11459029]
[1768834246504,0.00016139,92918.0,92903.0,0.010769]
[1768834246703,0.32564,92930.0,92903.0,0.010769]
[1768834246704,0.09087653,92941.0,92919.0,0.11459029]
[1768834246890,0.1197249,92940.0,92925.0,0.11459029]
[1768834247096,0.09692,92939.0,92928.0,0.12535629]
[1768834247291,0.09692,92939.0,92928.0,0.11459029]
[1768834247694,0.00657959,92945.0,92926.0,0.09507088]
[1768834247897,0.11972374,92944.0,92926.0,0.09507088]
[1768834248102,0.010765,92944.0,92927.0,0.11459029]
[1768834248404,0.10759189,92985.0,92924.0,0.00016139]
[1768834248405,0.010764,92948.0,92937.0,0.11459029]
[1768834248594,0.010764,92946.0,92937.0,0.11459029]
[1768834248906,0.09692,92945.0,92933.0,0.11459029]
[1768834249104,0.10349959,92944.0,92925.0,0.11459029]
[1768834249405,0.010765,92941.0,92924.0,0.00016139]
[1768834250001,0.010765,92941.0,92924.0,0.11475168]
[1768834251999,0.010766,92936.0,92924.0,0.11475168]
[1768834252199,0.010766,92936.0,92924.0,0.00016139]
[1768834252399,0.010766,92934.0,92924.0,0.00016139]
[1768834252597,0.09692,92933.0,92924.0,0.00016139]
[1768834254103,0.010766,92930.0,92911.0,0.10845744]
[1768834254304,0.010767,92927.0,92911.0,0.10845744]
[1768834254897,0.010767,92927.0,92911.0,0.11922544]
[1768834255498,0.010767,92927.0,92911.0,0.010768]
[1768834256809,0.12210879,92930.0,92911.0,0.010768]
[1768834257201,0.010767,92926.0,92910.0,0.09335436]
[1768834257603,0.010767,92926.0,92907.0,0.10845744]
[1768834258111,0.010767,92926.0,92908.0,0.10845744]
[1768834258500,0.09692,92933.0,92911.0,0.10845744]
[1768834258813,0.09692,92933.0,92909.0,0.09335436]
[1768834258814,0.010766,92932.0,92916.0,0.010768]
[1768834259110,0.010766,92935.0,92917.0,0.2018118]
[1768834259309,0.09692,92934.0,92921.0,0.10845744]
[1768834259612,0.09692,92934.0,92922.0,0.10845744]
[1768834260818,0.09692,92933.0,92926.0,0.11922444]